bitfinex/quotes_ETHUSD_20240711
["timestamp","ask_amount","ask_price","bid_price","bid_amount"]
[1720724207964,2.4894,3144.5,3143.3,3.18127]
[1720724208141,5.4894,3144.5,3143.3,3.18127]
[1720724209284,5.98141969,3144.5,3143.3,3.18127]
[1720724211946,5.98141969,3144.5,3143.3,6.36256]
[1720724212561,5.98141969,3144.5,3143.4,3.18126]
[1720724212780,5.98141969,3144.5,3143.1,0.00081477]
[1720724212781,2.98141969,3144.5,3143.5,3.18116]
[1720724212926,2.4894,3144.5,3143.7,3.18095]
[1720724213866,2.4894,3144.5,3143.1,3.18229477]
[1720724213867,2.98141969,3144.5,3143.1,3.18229477]
[1720724214163,2.3295,3144.3,3143.2,3.18145]
[1720724214323,2.82151969,3144.3,3143.2,3.18145]
[1720724214527,3.0,3144.2,3143.2,3.18145]
[1720724218473,2.3295,3144.3,3143.2,3.18145]
[1720724218673,2.82151969,3144.3,3143.1,3.18236477]
[1720724218833,2.4968,3144.1,3143.1,3.18236477]
[1720724219467,2.4968,3144.1,3143.1,0.00081477]
[1720724219642,2.2771,3143.9,3143.1,0.00081477]
[1720724219864,5.2771,3143.9,3143.1,0.00081477]
[1720724220238,2.2771,3143.8,3143.1,0.00081477]
[1720724220536,5.2771,3143.8,3143.1,0.00081477]
[1720724220865,2.2771,3143.8,3143.1,0.00081477]
[1720724221656,2.80481,3143.8,3143.1,0.00081477]
[1720724224737,2.3236,3143.6,3143.1,0.00081477]
[1720724224955,2.81561969,3143.6,3143.1,0.00081477]
[1720724225293,2.3236,3143.4,3143.1,0.00081477]
[1720724233654,2.81561969,3143.4,3143.1,0.00081477]
[1720724233872,2.4088,3143.2,3143.1,0.00081477]
[1720724234043,3.49201969,3143.2,3143.1,0.00081477]
[1720724234255,5.90081969,3143.2,3143.1,0.00081477]
[1720724234905,8.13881969,3143.2,3143.1,0.00081477]
[1720724247311,5.90081969,3143.2,3143.1,0.00081477]
[1720724247980,8.76210358,3143.2,3143.1,0.00081477]
[1720724248189,9.09513734,3143.2,3143.1,0.00081477]
[1720724255120,0.82505345,3143.2,3143.1,0.00081477]
[1720724255283,0.49201969,3143.2,3143.1,0.00081477]
[1720724257998,0.33201924,3143.3,3143.1,0.00081477]
[1720724258181,3.0,3143.5,3143.1,0.00081477]
[1720724258387,0.49201969,3143.5,3143.1,0.00081477]
[1720724258822,0.49201969,3143.5,3143.2,2.338]
[1720724259102,2.20437181,3145.5,3143.7,2.338]
[1720724259288,2.2713,3145.5,3144.1,3.18054]
[1720724259528,0.33250766,3145.4,3144.2,3.18044]
[1720724259684,0.33250766,3145.4,3144.4,3.18022]
[1720724261388,0.33250766,3145.4,3144.3,2.238]
[1720724261690,0.33250766,3145.4,3144.2,3.18044]
[1720724264240,0.33250766,3145.4,3144.0,3.18062]
[1720724264525,0.33250766,3145.4,3144.0,3.18057]
[1720724265721,0.33250766,3145.4,3144.1,3.18055]
[1720724267205,0.33250766,3145.4,3144.2,3.18045]
[1720724267540,0.33250766,3145.4,3144.3,3.24393426]
[1720724267829,0.33250766,3145.4,3144.5,5.59485]
[1720724268067,0.33250766,3145.4,3144.6,0.06358783]
[1720724269410,0.33250766,3145.4,3144.5,5.59485]
[1720724269613,0.33250766,3145.4,3144.7,3.17987]
[1720724270440,0.33250766,3145.4,3144.7,6.35974]
[1720724270738,3.0,3145.8,3144.8,0.06358173]
[1720724270912,2.2713,3145.9,3144.8,0.06358173]
[1720724271236,3.0,3145.7,3144.8,0.06358173]
[1720724271410,2.2713,3145.9,3144.8,0.06358173]
[1720724271614,2.2713,3145.9,3144.8,3.24340173]
[1720724271923,2.4595,3146.3,3145.0,3.17961]
[1720724272097,2.4595,3146.3,3145.3,3.17932]
[1720724277224,2.4595,3146.3,3145.4,3.17922]
[1720724277562,2.4595,3146.3,3145.4,3.24279313]
[1720724277958,2.4595,3146.3,3145.4,3.17922]
[1720724278173,2.4595,3146.3,3145.2,3.17937]
[1720724278334,2.4595,3146.3,3145.1,3.17949]
[1720724278523,3.0502527,3146.3,3145.2,3.17939]
[1720724278723,3.0,3146.2,3145.2,3.17939]
[1720724278961,3.0,3146.2,3145.0,9.718]
[1720724279128,3.0,3146.2,3145.0,7.48]
[1720724279535,2.415,3146.1,3145.0,7.48]
[1720724283764,2.415,3146.1,3144.7,3.17994]
[1720724287279,2.415,3146.1,3144.8,3.17984]
[1720724291252,2.415,3146.1,3144.6,12.89798]
[1720724291565,2.415,3146.1,3144.6,9.718]
[1720724291732,2.8653,3146.0,3144.6,7.48]
[1720724291935,2.3153,3145.8,3144.6,7.48]
[1720724292438,0.33258321,3145.7,3144.6,7.48]
[1720724292676,3.33258321,3145.7,3144.6,7.48]
[1720724295788,3.33258321,3145.7,3144.5,3.18011]
[1720724295970,3.33258321,3145.7,3144.5,6.36019]
[1720724296287,3.33258321,3145.7,3144.6,3.18002]
[1720724296983,3.33258321,3145.7,3144.7,3.17995]
[1720724297296,3.0,3145.7,3144.7,3.17995]
[1720724297498,2.3153,3145.8,3144.7,3.17995]
[1720724298984,2.3153,3145.8,3144.8,0.06358364]
[1720724299188,2.3153,3145.8,3144.7,6.35983]
[1720724299189,2.3153,3145.8,3145.0,3.17964]
[1720724301815,2.3153,3145.8,3144.8,3.17978]
[1720724302038,2.3153,3145.8,3144.8,6.35957]
[1720724302218,2.2735,3146.2,3145.5,3.17907]
[1720724302431,2.2735,3146.2,3145.5,3.17906]
[1720724302584,2.2735,3146.2,3145.5,6.35814]
[1720724302916,2.2735,3146.2,3145.4,2.238]
[1720724303127,2.2735,3146.2,3145.4,5.41723]
[1720724303333,2.2735,3146.2,3145.5,3.17911]
[1720724303824,2.2735,3146.2,3145.4,2.238]
[1720724304404,2.2735,3146.2,3144.6,10.6078699]
[1720724304608,2.2532,3146.0,3144.7,3.17995]
[1720724304993,2.2532,3145.9,3144.7,3.17995]
[1720724305193,2.2532,3145.9,3144.6,7.48]
[1720724305194,2.77852,3145.9,3144.6,7.48]
[1720724305415,2.2532,3145.7,3144.6,7.48]
[1720724307615,2.2532,3145.7,3144.5,3.18014]
[1720724309851,0.33250477,3145.9,3145.1,3.17951]
[1720724310145,6.81752077,3147.4,3145.4,2.238]
[1720724310146,2.447,3147.0,3145.4,2.238]
[1720724310346,2.447,3146.8,3145.4,2.238]
[1720724311845,2.295,3146.7,3145.4,2.238]
[1720724312142,2.295,3146.6,3145.4,2.238]
[1720724320758,0.33211053,3146.5,3145.4,2.238]
[1720724320972,3.33211053,3146.5,3145.4,2.238]
[1720724321470,3.33211053,3146.5,3145.1,7.48]
[1720724321471,2.8425,3146.4,3145.1,7.48]
[1720724321795,3.19258985,3146.4,3145.0,2.238]
[1720724321982,3.0,3146.3,3145.0,2.238]
[1720724322190,1.16925899,3146.2,3145.0,2.238]
[1720724322584,0.61925899,3146.2,3145.0,2.238]
[1720724323359,3.0,3146.3,3145.0,2.238]
[1720724323765,3.0,3146.3,3145.0,5.41764]
[1720724324607,2.339,3146.2,3145.0,2.238]
[1720724324965,2.339,3146.2,3144.8,10.65975]
[1720724325265,2.90790899,3146.2,3144.8,10.65975]
[1720724325467,3.0,3146.1,3144.8,10.65975]
[1720724326098,3.0,3146.1,3144.9,3.17973]
[1720724327616,2.339,3146.2,3144.9,3.17973]
[1720724328594,2.339,3146.2,3144.9,3.17968]
[1720724328815,2.339,3146.2,3145.0,3.17964]
[1720724332184,2.339,3146.2,3144.8,10.65977]
[1720724332416,2.339,3146.2,3144.9,3.17973]
[1720724332723,2.67139967,3146.2,3144.9,3.17973]
[1720724332888,3.0,3146.1,3144.9,3.17973]
[1720724333094,3.56713997,3146.1,3144.9,3.17973]
[1720724333916,3.56713997,3146.1,3144.8,10.65984]
[1720724334512,3.56713997,3146.1,3144.9,3.17974]
[1720724336517,2.2572,3146.0,3144.8,7.48]
[1720724336708,2.2572,3145.8,3144.8,7.48]
[1720724336904,5.2572,3145.8,3144.8,7.48]
[1720724337301,2.2572,3145.7,3144.8,7.48]
[1720724337515,5.2572,3145.7,3144.8,7.48]
[1720724337700,0.52572,3145.6,3144.8,7.48]
[1720724337906,2.2572,3145.7,3144.8,7.48]
[1720724339826,2.2572,3145.7,3144.8,10.65984]
[1720724340525,2.2572,3145.7,3144.9,3.17975]
[1720724340725,2.2572,3145.7,3144.9,5.43955]
[1720724340903,2.3858,3146.0,3144.9,5.43955]
[1720724341432,2.3858,3146.0,3144.8,7.48]
[1720724346954,2.3858,3146.0,3144.8,10.65984]
[1720724347256,2.3858,3146.0,3144.8,10.60984]
[1720724347444,2.3858,3146.0,3144.8,13.78962]
[1720724347605,2.3858,3146.0,3144.8,10.60978]
[1720724348147,2.3858,3146.0,3144.8,7.43]
[1720724349541,2.3858,3146.0,3144.8,10.60984]
[1720724350432,2.3858,3146.0,3144.8,13.78963]
[1720724350634,2.3858,3146.0,3144.8,10.60979]
[1720724350950,2.3858,3146.0,3144.9,3.17974]
[1720724351877,2.3858,3146.0,3145.0,3.17958]
[1720724352083,2.3858,3146.0,3145.0,5.52838]
[1720724352453,5.3858,3146.0,3145.2,3.17944]
[1720724352681,2.3858,3146.0,3145.2,3.17938]
[1720724353072,2.3858,3146.0,3145.2,6.35877]
[1720724353539,2.3858,3146.0,3145.3,3.17928]
[1720724353744,2.4522,3146.7,3145.5,3.17907]
[1720724357866,2.4522,3146.7,3145.6,3.2425966]
[1720724358050,2.4522,3146.7,3145.6,3.17897]
[1720724358246,2.4522,3146.7,3145.7,3.17889]
[1720724358475,2.4522,3146.7,3145.8,3.17883]
[1720724359346,2.4522,3146.7,3145.8,6.3576]
[1720724359899,2.4522,3146.7,3145.8,3.17877]
[1720724360390,2.4522,3146.7,3145.8,6.35754]
[1720724361888,2.4522,3146.7,3145.8,3.17877]
[1720724362385,2.4522,3146.7,3145.6,3.17895]
[1720724362749,2.4522,3146.7,3145.4,3.17921]
[1720724363048,2.4522,3146.7,3145.5,3.17913]
[1720724363250,2.78407254,3146.7,3145.5,3.17913]
[1720724363551,2.3973,3146.5,3145.3,10.60931]
[1720724364257,2.3973,3146.5,3145.3,7.43]
[1720724368895,2.3973,3146.5,3145.3,10.60933]
[1720724370287,2.3973,3146.5,3145.5,3.17906]
[1720724371063,2.3973,3146.5,3145.3,10.60928]
[1720724371263,2.3973,3146.5,3145.4,3.17924]
[1720724371463,2.97021725,3146.5,3145.5,3.17909]
[1720724372495,2.3973,3146.5,3145.6,3.17903]
[1720724373062,2.3973,3146.5,3145.7,3.17886]
[1720724373262,2.3973,3146.5,3145.8,3.17877]
[1720724373760,2.3973,3146.5,3145.6,3.17898]
[1720724374002,2.3973,3146.5,3145.4,6.35834]
[1720724374218,2.3973,3146.5,3145.5,3.17913]
[1720724375787,2.3973,3146.5,3145.3,10.60927]
[1720724378075,2.3973,3146.5,3145.4,3.17923]
[1720724384675,2.3973,3146.5,3145.4,6.35841]
[1720724385408,2.3973,3146.5,3145.5,3.17912]
[1720724385715,2.3973,3146.5,3145.3,10.60928]
[1720724386510,2.72931834,3146.5,3145.3,10.60928]
[1720724389824,2.72931834,3146.5,3145.3,13.78856]
[1720724390636,2.72931834,3146.5,3145.7,0.933]
[1720724391428,2.72931834,3146.5,3145.9,0.933]
[1720724394363,2.72931834,3146.5,3145.7,0.933]
[1720724395631,2.3973,3146.5,3145.7,0.933]
[1720724395832,2.3973,3146.5,3145.9,0.933]
[1720724396028,2.63703,3146.5,3145.9,0.933]
[1720724397835,2.3973,3146.5,3145.9,0.933]
[1720724399884,2.3973,3146.5,3145.7,4.11192]
[1720724400238,2.3973,3146.5,3145.4,3.17919]
[1720724400439,2.3973,3146.5,3145.4,4.11217]
[1720724400664,2.3645,3146.3,3145.4,3.17917]
[1720724400942,2.3645,3146.3,3145.3,7.43]
[1720724401203,2.3645,3146.3,3145.3,8.363]
[1720724401391,0.933,3146.2,3145.3,7.43]
[1720724401715,2.3645,3146.1,3145.3,7.43]
[1720724402410,2.3645,3146.1,3145.3,11.54234]
[1720724403922,2.3645,3146.1,3145.3,8.363]
[1720724404424,2.3645,3146.1,3145.3,7.43]
[1720724404624,2.3645,3146.1,3145.3,8.363]
[1720724406139,0.933,3145.6,3145.3,7.43]
[1720724406335,0.933,3145.6,3144.9,7.43]
[1720724406336,2.4986,3145.5,3144.9,7.43]
[1720724408232,2.84176,3145.5,3144.9,7.43]
[1720724410240,2.4986,3145.5,3144.9,7.43]
[1720724411743,2.4986,3145.5,3144.5,6.36019]
[1720724411939,2.4986,3145.5,3144.6,3.18002]
[1720724412347,2.4986,3145.5,3144.9,3.17971]
[1720724412566,2.4983,3146.0,3144.9,3.17971]
[1720724412862,2.4983,3146.0,3144.8,2.4408]
[1720724412863,2.4983,3146.0,3145.1,3.17948]
[1720724413084,2.4983,3146.0,3145.2,3.17941]
[1720724413948,2.4983,3146.0,3144.8,2.4408]
[1720724414168,2.4983,3146.0,3145.1,3.1795]
[1720724414766,2.4983,3146.0,3145.2,3.17943]
[1720724415255,2.4983,3146.0,3145.4,3.17918]
[1720724415676,2.4381,3146.3,3145.7,3.17893]
[1720724415884,2.4381,3146.3,3145.8,3.17874]
[1720724416215,2.4381,3146.3,3145.9,3.17871]
[1720724417063,2.4381,3146.3,3145.9,3.17864]
[1720724417279,2.4381,3146.3,3145.9,3.17868]
[1720724417437,2.4381,3146.3,3145.9,6.35734]
[1720724418094,2.3719,3147.3,3146.0,3.17858]
[1720724418269,2.3719,3147.1,3146.0,3.17858]
[1720724420392,2.3719,3147.1,3145.9,3.17866]
[1720724420596,2.3719,3147.1,3146.3,3.17833]
[1720724420741,2.3719,3147.1,3146.3,0.06355149]
[1720724421078,2.3719,3147.1,3146.5,3.17804]
[1720724421285,2.3719,3147.1,3146.5,6.35608]
[1720724421786,2.3719,3147.1,3146.5,3.17804]
[1720724423680,2.3719,3147.1,3146.3,3.17826]
[1720724424175,2.3719,3147.1,3146.4,3.17823]
[1720724428165,2.3719,3147.1,3146.1,3.17848]
[1720724428372,2.3719,3147.1,3146.3,3.17833]
[1720724428559,2.3719,3147.1,3146.3,3.17825]
[1720724428761,2.3719,3147.1,3146.3,6.35649]
[1720724428963,2.3719,3147.1,3146.3,3.17824]
[1720724429301,2.3719,3147.1,3146.3,6.35651]
[1720724430365,2.3719,3147.1,3146.4,3.17823]
[1720724430665,2.3719,3147.1,3146.6,0.933]
[1720724433019,3.0,3147.9,3146.8,0.933]
[1720724433174,2.4443,3147.4,3146.9,0.06354409]
[1720724433568,2.4443,3147.4,3146.8,0.933]
[1720724434201,2.4443,3147.4,3146.8,4.1108]
[1720724434719,2.4443,3147.4,3146.7,3.17792]
[1720724434720,2.4443,3147.4,3147.0,0.933]
[1720724434922,2.4443,3147.4,3147.2,0.933]
[1720724439597,2.4596,3147.9,3147.2,0.933]
[1720724439994,2.4596,3147.9,3146.9,3.17772]
[1720724440211,0.54596,3147.8,3147.0,0.933]
[1720724442802,0.54596,3147.8,3147.2,0.933]
[1720724444533,2.2578,3147.7,3147.0,0.933]
[1720724450336,2.2578,3147.7,3146.7,8.413]
[1720724450337,2.3257,3147.6,3146.7,8.413]
[1720724450638,2.4939,3147.4,3146.7,8.413]
[1720724454112,2.4939,3147.4,3146.9,0.933]
[1720724455909,2.4939,3147.4,3146.7,8.413]
[1720724456373,2.4939,3147.4,3146.7,7.48]
[1720724459617,2.82532552,3147.4,3146.7,7.48]
[1720724459823,2.3638,3147.3,3146.7,7.48]
[1720724460550,0.933,3147.3,3146.7,7.48]
[1720724460763,2.3638,3147.2,3146.7,7.48]
[1720724461066,2.3638,3147.2,3146.4,19.77]
[1720724462477,2.3638,3147.2,3146.5,0.933]
[1720724465772,2.3638,3147.2,3146.5,4.11111]
[1720724467585,2.3638,3147.2,3146.5,0.933]
[1720724467788,2.3638,3147.2,3146.4,7.48]
[1720724469323,0.933,3147.1,3146.4,7.48]
[1720724469488,2.3906,3147.0,3146.4,7.48]
[1720724471283,2.3906,3147.0,3146.3,0.933]
[1720724474368,2.3906,3147.0,3146.1,7.48]
[1720724474590,2.3426,3146.9,3146.1,7.48]
[1720724475117,0.933,3146.8,3146.1,7.48]
[1720724475268,0.933,3146.6,3146.1,7.48]
[1720724475467,0.33191488,3146.9,3145.0,3.17959]
[1720724475468,2.4557,3146.3,3145.7,7.48]
[1720724475678,2.4557,3146.3,3145.3,13.223]
[1720724475679,2.4557,3146.1,3145.4,7.48]
[1720724476000,2.4557,3146.1,3145.5,0.933]
[1720724476156,2.4557,3146.1,3145.7,0.933]
[1720724476988,2.4557,3146.1,3145.5,0.933]
[1720724478546,2.4557,3146.1,3145.5,4.11212]
[1720724478949,2.4557,3146.1,3145.7,0.933]
[1720724479555,3.3192,3146.8,3145.9,0.933]
[1720724479756,2.75131149,3146.8,3145.9,0.933]
[1720724481345,3.68431149,3146.8,3145.9,0.933]
[1720724481551,0.933,3146.6,3145.7,8.413]
[1720724481745,0.933,3146.4,3145.7,7.48]
[1720724481954,2.4371,3146.3,3145.7,7.48]
[1720724482449,2.77411,3146.3,3145.7,7.48]
[1720724485523,0.33156313,3146.2,3145.7,7.48]
[1720724486225,0.33156313,3146.2,3145.3,20.703]
[1720724486574,0.933,3145.9,3145.3,7.48]
[1720724486891,2.3783,3145.8,3145.3,7.48]
[1720724487288,2.70943,3145.8,3145.3,7.48]
[1720724491915,2.70943,3145.8,3144.9,8.413]
[1720724495543,2.3783,3145.8,3144.9,8.413]
[1720724495715,2.3783,3145.8,3145.1,0.933]
[1720724499425,2.3282,3146.1,3145.7,0.933]
[1720724499607,2.3282,3146.4,3146.0,0.933]
[1720724500504,0.35825651,3147.7,3146.2,0.933]
[1720724500505,2.2878,3146.9,3146.2,0.933]
[1720724500712,2.2878,3146.9,3146.2,3.2419775]
[1720724501153,2.2878,3146.9,3146.3,0.06355701]
[1720724501647,0.35825651,3147.7,3146.3,0.06355701]
[1720724501648,2.4325,3147.2,3146.3,0.06355701]
[1720724502512,2.4325,3147.2,3146.5,3.17812]
[1720724503115,2.4325,3147.2,3146.6,0.06354927]
[1720724503511,2.4325,3147.2,3146.5,3.17804]
[1720724503708,2.2718,3148.0,3146.7,3.17789]
[1720724503913,2.63005651,3148.0,3146.7,3.17789]
[1720724504120,2.63005651,3148.0,3146.6,7.48]
[1720724504121,2.2718,3147.8,3146.6,10.65803]
[1720724504328,2.2718,3147.7,3146.6,10.65803]
[1720724504547,5.2718,3147.7,3146.6,10.65803]
[1720724504732,0.82718,3147.6,3146.6,10.65803]
[1720724505045,3.82718,3147.6,3146.6,10.65803]
[1720724505207,3.82718,3147.6,3146.6,7.48]
[1720724505415,2.2718,3147.5,3146.6,7.48]
[1720724506145,2.2718,3147.5,3146.7,3.17793]
[1720724506730,5.2718,3147.8,3146.9,3.1777]
[1720724507244,2.2718,3147.8,3146.9,6.35533]
[1720724507447,2.2718,3147.8,3147.0,3.17762]
[1720724507813,2.2718,3147.8,3147.1,3.17744]
[1720724508815,2.2718,3147.8,3147.2,3.17739]
[1720724509955,2.2718,3147.8,3147.0,3.17756]
[1720724510144,2.2718,3147.8,3147.1,3.17752]
[1720724512752,2.2718,3147.8,3146.6,19.77]
[1720724512950,2.4196,3147.6,3146.6,19.77]
[1720724515981,2.4196,3147.6,3146.6,7.48]
[1720724518557,2.4196,3147.6,3146.6,10.65803]
[1720724520563,2.4196,3147.6,3146.6,7.48]
[1720724521140,3.0,3147.7,3146.6,7.48]
[1720724521141,0.90825651,3147.5,3146.6,7.48]
[1720724521342,2.4275,3147.4,3146.6,7.48]
[1720724521544,2.4275,3147.2,3146.6,7.48]
[1720724521784,2.4275,3147.1,3146.3,7.48]
[1720724522157,2.4275,3147.1,3145.9,7.48]
[1720724522366,0.33357565,3147.3,3145.9,7.48]
[1720724522367,2.3373,3146.9,3145.9,7.48]
[1720724522674,2.3373,3146.8,3145.9,7.48]
[1720724522842,0.53373,3146.7,3145.9,7.48]
[1720724523043,2.3373,3146.6,3145.9,7.48]
[1720724523342,5.3373,3146.6,3145.9,7.48]
[1720724530295,3.0,3146.6,3145.9,7.48]
[1720724530462,2.4064,3146.5,3145.9,7.48]
[1720724530660,0.24064,3146.4,3145.9,7.48]
[1720724530859,0.24064,3146.4,3145.6,7.48]
[1720724531094,3.24064,3146.4,3145.6,7.48]
[1720724531297,2.4064,3146.3,3145.6,7.48]
[1720724531470,2.4064,3146.2,3145.6,7.48]
[1720724531678,0.54064,3146.1,3145.6,7.48]
[1720724534504,2.4738,3146.0,3145.6,7.48]
[1720724536561,2.4738,3146.0,3145.2,7.48]
[1720724540402,2.3199,3145.9,3145.2,7.47862853]
[1720724540607,0.33266843,3145.8,3145.2,7.47862853]
[1720724540786,2.3199,3145.9,3145.2,7.47862853]
[1720724544574,0.934,3145.8,3145.2,7.47862853]
[1720724546090,2.3199,3145.9,3145.2,7.47862853]
[1720724549715,2.3199,3145.9,3145.2,8.41262853]
[1720724550616,2.3199,3145.9,3145.2,7.47862853]
[1720724554933,0.33079378,3146.2,3145.2,7.47862853]
[1720724554934,2.4439,3145.7,3145.2,7.47862853]
[1720724556567,2.4439,3145.7,3145.2,8.41262853]
[1720724558129,2.4439,3145.7,3145.2,7.47862853]
[1720724558330,2.4439,3145.7,3145.2,8.41262853]
[1720724560334,2.4439,3145.7,3145.2,0.934]
[1720724561145,2.4439,3145.7,3144.9,19.76862853]
[1720724561363,2.4439,3145.7,3144.9,20.70262853]
[1720724562347,2.4439,3145.7,3144.9,19.76862853]
[1720724563693,2.4439,3145.7,3144.9,20.70262853]
[1720724564398,2.78169,3145.7,3144.9,19.76862853]
[1720724564547,0.934,3145.6,3144.9,19.76862853]
[1720724564749,0.934,3145.4,3144.9,19.76862853]
[1720724564947,2.3808,3145.3,3144.9,19.76862853]
[1720724565143,2.3808,3145.3,3144.5,7.47862853]
[1720724565420,2.3808,3145.1,3144.5,7.47862853]
[1720724568588,2.3808,3145.1,3144.6,0.934]
[1720724571609,2.4313,3145.4,3144.8,0.934]
[1720724571962,2.4313,3145.4,3144.6,0.934]
[1720724572160,0.24313,3145.3,3144.6,0.934]
[1720724573254,0.24313,3145.3,3144.5,7.47862853]
[1720724573459,0.24313,3145.3,3144.5,8.41262853]
[1720724574509,2.4313,3145.2,3144.5,7.47862853]
[1720724574661,2.4313,3145.0,3144.5,7.47862853]
[1720724575297,2.4313,3145.0,3144.2,20.70262853]
[1720724575599,2.4313,3145.0,3144.2,8.41262853]
[1720724577303,0.934,3145.0,3144.2,7.47862853]
[1720724577602,2.438,3144.9,3144.2,7.47862853]
[1720724577768,2.2553,3144.7,3144.2,7.47862853]
[1720724577969,2.2553,3144.7,3144.2,7.42862853]
[1720724579004,2.2553,3144.7,3143.3,3.18133]
[1720724579306,3.2197,3144.4,3143.3,0.934]
[1720724579517,5.60767,3144.3,3143.3,0.934]
[1720724580196,5.60767,3144.3,3143.5,0.934]
[1720724580517,5.60767,3144.3,3143.7,0.934]
[1720724580518,5.2857,3144.3,3143.7,0.934]
[1720724580660,2.2857,3144.3,3143.2,5.42444]
[1720724581063,2.2857,3144.3,3143.1,3.18238477]
[1720724581064,2.2857,3144.3,3143.1,0.00081477]
[1720724585370,0.33145228,3144.2,3143.1,0.00081477]
[1720724585571,2.4252,3144.1,3143.1,0.00081477]
[1720724585801,2.4057,3143.9,3143.1,0.00081477]
[1720724598954,2.4057,3143.9,3143.1,3.18235477]
[1720724599460,2.4057,3143.9,3143.1,3.24597402]
[1720724599659,2.4057,3143.9,3143.1,6.42748402]
[1720724600160,2.4057,3143.9,3143.2,3.18144]
[1720724602742,2.4057,3143.9,3143.4,0.935]
[1720724604332,2.4663,3144.2,3143.6,0.935]
[1720724605182,2.3412,3145.6,3144.1,0.935]
[1720724605467,0.935,3145.3,3144.4,0.935]
[1720724605677,2.4812,3145.2,3144.4,0.935]
[1720724606231,2.4812,3145.0,3144.4,0.935]
[1720724606428,5.4812,3145.0,3144.4,0.935]
[1720724606660,5.4812,3145.0,3144.0,6.36116]
[1720724606977,2.4812,3145.0,3144.1,3.24413062]
[1720724607975,2.4812,3145.0,3144.1,3.18053]
[1720724609287,2.4812,3145.0,3144.1,3.24412965]
[1720724609450,2.4812,3145.0,3144.2,3.18039]
[1720724609648,2.4812,3145.0,3144.3,3.24393476]
[1720724610595,2.4812,3145.0,3144.3,3.18034]
[1720724610942,2.4812,3145.0,3144.4,3.24384425]
[1720724611472,2.4812,3145.0,3144.4,3.18025]
[1720724613800,5.2886,3145.4,3144.6,3.17997]
[1720724614091,5.2886,3145.4,3144.7,3.17989]
[1720724614271,2.2886,3145.4,3144.7,3.17989]
[1720724616305,2.2886,3145.4,3144.5,2.242]
[1720724616695,2.2886,3145.4,3144.6,6.35994]
[1720724617097,2.2886,3145.4,3144.6,3.17997]
[1720724619480,2.2886,3145.4,3144.7,3.17994]
[1720724622998,2.2886,3145.4,3144.5,2.242]
[1720724623985,2.2886,3145.4,3144.6,3.17999]
[1720724626578,2.2886,3145.4,3145.0,0.934]
[1720724632098,2.2886,3145.4,3145.2,0.934]
[1720724634399,2.4872,3145.9,3145.2,0.934]
[1720724634597,2.4872,3145.9,3145.4,0.934]
[1720724634801,2.73592,3145.9,3145.4,0.934]
[1720724635029,2.73592,3145.9,3145.0,3.17964]
[1720724635030,3.0,3145.8,3145.2,0.934]
[1720724641143,2.4872,3145.9,3145.4,0.934]
[1720724641553,2.4872,3145.9,3145.2,4.11344]
[1720724642656,2.4872,3145.9,3145.4,0.934]
[1720724644132,2.4872,3145.9,3144.8,3.17981]
[1720724644335,3.06725083,3145.9,3145.0,0.934]
[1720724644961,3.06725083,3145.9,3144.8,3.17981]
[1720724645260,3.06725083,3145.9,3145.1,0.934]
[1720724646975,2.4872,3145.9,3145.4,0.934]
[1720724648234,3.4212,3145.9,3144.9,3.17965]
[1720724648432,3.4212,3145.9,3145.0,3.17958]
[1720724648981,0.934,3145.7,3145.0,3.17958]
[1720724649282,2.3066,3145.6,3145.0,3.17958]
[1720724649932,2.3066,3145.6,3144.8,3.17979]
[1720724650349,0.934,3145.1,3144.8,3.17979]
[1720724651840,0.934,3145.3,3144.9,3.17975]
[1720724653601,0.934,3145.3,3145.1,3.17953]
[1720724654395,2.3066,3145.6,3145.1,6.35902]
[1720724654597,0.934,3145.5,3145.1,6.35902]
[1720724655395,0.934,3145.5,3145.2,3.17944]
[1720724659165,0.934,3145.5,3145.0,3.17955]
[1720724659614,2.3066,3145.6,3144.9,3.17969]
[1720724659615,0.934,3145.3,3145.1,3.17952]
[1720724661936,0.934,3145.3,3144.9,3.17966]
[1720724662604,0.934,3145.3,3144.7,3.17989]
[1720724662915,2.3749,3144.8,3144.4,3.18024]
[1720724663128,2.70579,3144.8,3144.4,3.18024]
[1720724663413,2.3749,3144.8,3144.5,3.18014]
[1720724663772,2.3749,3144.8,3144.2,3.18038]
[1720724664213,2.3749,3144.8,3144.3,3.18026]
[1720724664380,2.3749,3144.8,3144.4,3.18024]
[1720724665003,2.3749,3144.8,3144.2,3.18038]
[1720724665192,0.934,3144.7,3144.2,3.18038]
[1720724665714,0.934,3144.7,3144.2,6.36077]
[1720724665913,0.934,3144.7,3144.3,3.18029]
[1720724669004,2.257,3145.1,3144.4,3.18022]
[1720724669354,3.191,3145.1,3144.5,3.18015]
[1720724671625,2.257,3145.5,3144.9,3.17975]
[1720724671838,0.934,3145.3,3144.9,3.17975]
[1720724672203,0.934,3145.3,3144.7,3.17986]
[1720724672412,0.934,3145.3,3144.8,3.17978]
[1720724672628,0.934,3145.3,3144.8,6.35956]
[1720724673443,3.0,3145.8,3144.8,3.17978]
[1720724673444,0.934,3145.1,3144.8,3.17978]
[1720724673651,0.934,3145.1,3144.8,6.35956]
[1720724673827,0.934,3145.1,3144.9,3.17973]